bitfinex-derivatives/quotes_SOLF0:USTF0_20241105
["timestamp","ask_amount","ask_price","bid_price","bid_amount"]
[1730789727583,7.64724944,161.0,160.98,3.1076]
[1730789738999,7.64724944,161.0,160.97,3.1077]
[1730789746107,3.1069,161.02,160.97,3.1077]
[1730789746308,7.64724944,161.01,160.97,3.1077]
[1730789747406,7.64724944,161.01,160.98,3.1076]
[1730789747910,7.64724944,161.01,160.97,3.1077]
[1730789748207,7.64724944,161.01,160.96,2.78]
[1730789748208,7.64724944,161.04,160.99,7.64724944]
[1730789748409,7.64724944,161.04,161.0,3.1072]
[1730789748908,7.64724944,161.04,160.99,7.64724944]
[1730789749101,7.64724944,161.04,161.01,3.1071]
[1730789750405,7.64724944,161.02,161.01,3.1071]
[1730789754212,7.64724944,161.03,161.01,3.1071]
[1730789755908,1.3435,161.06,161.0,7.64724944]
[1730789756114,7.64724944,161.05,161.03,3.1065]
[1730789760312,7.64724944,161.05,161.0,7.64724944]
[1730789760517,7.64724944,161.05,161.04,3.1065]
[1730789760916,7.64724944,161.06,161.02,7.64724944]
[1730789761110,7.64724944,161.08,161.05,3.1062]
[1730789762115,7.64724944,161.07,161.04,3.1064]
[1730789764519,3.1056,161.09,161.04,10.75364944]
[1730789764715,7.64724944,161.07,161.04,3.1064]
[1730789765723,7.64724944,161.07,161.02,7.64724944]
[1730789766521,7.64724944,161.07,161.04,3.1063]
[1730789767715,3.1056,161.09,161.04,3.1063]
[1730789767917,7.64724944,161.07,161.04,3.1063]
[1730789769024,7.64724944,161.07,161.01,7.64724944]
[1730789769224,7.64724944,161.07,161.03,3.1065]
[1730789769818,7.64724944,161.07,161.04,3.1065]
[1730789770325,3.1059,161.08,161.03,3.1065]
[1730789770624,7.64724944,161.06,161.01,7.64724944]
[1730789771323,7.64724944,161.05,161.0,2.76]
[1730789771529,7.64724944,161.03,161.0,2.76]
[1730789772024,7.64724944,161.03,161.02,3.1069]
[1730789772528,7.64724944,161.05,161.02,3.1069]
[1730789773224,7.64724944,161.06,161.02,3.1069]
[1730789773432,10.75324944,161.07,161.02,10.75414944]
[1730789773725,7.64724944,161.06,161.02,10.75414944]
[1730789775923,7.64724944,161.06,161.02,3.1069]
[1730789777234,10.75354944,161.05,161.01,3.1071]
[1730789777526,7.64724944,161.03,161.01,3.1071]
[1730789777733,7.64724944,161.03,160.99,2.76]
[1730789777927,7.64724944,161.01,160.99,2.76]
[1730789778233,7.64724944,161.01,160.96,10.40724944]
[1730789778735,7.64724944,161.01,160.99,3.1074]
[1730789780433,7.64724944,161.01,160.98,3.1076]
[1730789781842,7.64724944,161.01,160.97,78.72376843]
[1730789782133,7.64724944,161.0,160.97,78.72376843]
[1730789783434,7.64724944,161.0,160.97,75.61606843]
[1730789784528,7.64724944,160.99,160.97,75.61606843]
[1730789784833,7.64724944,160.98,160.97,75.61606843]
[1730789785026,7.64724944,160.98,160.93,2.76]
[1730789785226,7.64724944,160.98,160.94,3.1083]
[1730789788836,7.64724944,160.98,160.92,10.40724944]
[1730789789034,7.64724944,160.98,160.95,3.1082]
[1730789790226,1.4029,160.99,160.95,3.1082]
[1730789790433,7.64724944,160.97,160.95,3.1082]
[1730789792637,9.05014944,160.99,160.95,3.1082]
[1730789797146,9.05014944,160.99,160.96,3.108]
[1730789799848,1.4029,160.99,160.98,3.1076]
[1730789800151,9.04524944,161.0,160.98,3.1076]
[1730789800352,7.64724944,161.01,160.98,3.1076]
[1730789800650,7.64724944,161.01,160.95,7.64724944]
[1730789800845,7.64724944,161.01,160.99,3.1073]
[1730789803043,7.64724944,161.0,160.99,3.1073]
[1730789807452,3.1067,161.03,160.99,3.1073]
[1730789807658,7.64724944,161.01,160.99,3.1073]
[1730789808961,7.64724944,161.01,160.96,2.76]
[1730789809152,7.64724944,161.0,160.98,3.1076]
[1730789811861,1.3077,161.04,160.98,7.64724944]
[1730789812055,8.95494944,161.04,160.98,7.64724944]
[1730789812460,8.95494944,161.04,161.01,3.1069]
[1730789812660,8.95494944,161.04,160.98,7.64724944]
[1730789812850,7.64724944,161.02,160.98,7.64724944]
[1730789813050,7.64724944,161.02,161.0,3.1071]
[1730789814257,7.64724944,161.01,160.95,7.64724944]
[1730789814457,7.64724944,160.99,160.98,3.1076]
[1730789815557,7.64724944,161.0,160.98,3.1076]
[1730789818064,7.64724944,160.99,160.95,5.8681]
[1730789818271,7.64724944,160.99,160.95,2.76]
[1730789819370,4.0677,161.04,160.96,7.64724944]
[1730789819568,7.64724944,161.03,160.98,7.64724944]
[1730789819871,10.75394944,161.03,160.98,10.75474944]
[1730789821268,10.75394944,161.03,160.98,7.64724944]
[1730789821468,7.64724944,161.02,160.99,3.1074]
[1730789826477,7.64724944,161.03,161.01,3.1069]
[1730789826675,7.64724944,161.03,160.98,7.64724944]
[1730789827674,7.64724944,161.03,161.01,3.1069]
[1730789831071,7.64724944,161.02,160.99,3.1073]
[1730789831270,7.64724944,161.02,160.96,7.64724944]
[1730789831779,7.64724944,161.02,161.0,3.1072]
[1730789832278,7.64724944,161.02,160.98,3.1075]
[1730789832481,3.1067,161.03,160.98,3.1075]
[1730789832482,7.64724944,161.01,160.98,3.1075]
[1730789832782,7.64724944,161.02,160.97,7.64724944]
[1730789832981,7.64724944,161.02,160.99,3.1072]
[1730789835290,7.64724944,161.02,160.97,7.64724944]
[1730789835483,7.64724944,161.01,160.95,10.40724944]
[1730789835888,7.64724944,161.01,160.97,3.1077]
[1730789836287,7.64724944,160.99,160.97,3.1077]
[1730789837083,3.1069,161.02,160.97,3.1077]
[1730789837286,7.64724944,161.0,160.98,3.1076]
[1730789838891,7.64724944,161.0,160.95,2.76]
[1730789839189,7.64724944,161.0,160.97,3.1077]
[1730789842890,7.64724944,161.0,160.95,2.76]
[1730789843089,7.64724944,161.0,160.98,3.1076]
[1730789845200,3.1069,161.02,160.98,3.1076]
[1730789845492,3.1078,160.98,160.93,3.1085]
[1730789845699,7.64724944,160.94,160.93,3.1085]
[1730789848403,1.3501,160.98,160.93,3.1084]
[1730789848701,7.64724944,160.97,160.92,10.40724944]
[1730789849201,7.64724944,160.96,160.92,3.1086]
[1730789849397,7.64724944,160.94,160.91,0.66203]
[1730789849704,7.64724944,160.96,160.95,3.1082]
[1730789850296,7.64724944,160.97,160.96,3.108]
[1730789850891,8.93284944,161.0,160.95,7.64724944]
[1730789851099,7.64724944,161.0,160.95,7.64724944]
[1730789851798,7.64724944,161.0,160.98,3.1076]
[1730789851995,4.1337,161.01,160.95,7.64724944]
[1730789852194,7.64724944,161.01,160.98,3.1075]
[1730789852591,7.64724944,161.02,160.98,3.1075]
[1730789854911,7.64724944,161.02,160.97,7.64724944]
[1730789855807,5.8665,161.04,160.99,3.1073]
[1730789856010,7.64724944,161.02,160.99,3.1073]
[1730789858103,7.64724944,161.02,161.0,3.1071]
[1730789858309,7.64724944,161.03,160.98,7.64724944]
[1730789858709,7.64724944,160.99,160.97,3.1077]
[1730789858906,7.64724944,160.99,160.94,10.40724944]
[1730789859509,7.64724944,160.99,160.98,3.1076]
[1730789862715,7.64724944,160.99,160.94,2.76]
[1730789862914,7.64724944,160.96,160.91,8.30927944]
[1730789863114,7.64724944,160.96,160.92,2.76]
[1730789863815,7.64724944,160.96,160.94,3.1083]
[1730789864309,7.64724944,160.96,160.93,3.1086]
[1730789864509,7.64724944,160.96,160.92,2.76]
[1730789865315,7.64724944,160.96,160.94,3.1083]
[1730789867715,7.64724944,160.96,160.95,3.1082]
[1730789868117,7.64724944,160.97,160.95,3.1082]
[1730789868315,7.64724944,160.99,160.97,3.1078]
[1730789869919,4.0392,161.0,160.94,7.64724944]
[1730789870112,7.64724944,160.99,160.97,3.1077]
[1730789872217,7.64724944,160.99,160.95,3.1082]
[1730789872420,7.64724944,160.99,160.93,7.64724944]
[1730789873513,7.64724944,160.99,160.97,3.1078]
[1730789879225,7.64724944,160.99,160.96,3.108]
[1730789880826,7.64724944,160.97,160.96,3.108]
[1730789881923,7.64724944,160.97,160.95,3.1082]
[1730789882223,7.64724944,160.96,160.95,3.1082]
[1730789892133,1.3619,161.0,160.99,3.1074]
[1730789892317,9.00914944,161.0,160.99,3.1074]
[1730789892522,9.00914944,161.0,160.96,7.64724944]
[1730789892723,9.00914944,161.0,160.99,3.1074]
[1730789893224,7.64724944,161.0,160.99,3.1074]
[1730789893528,7.64724944,161.0,160.88,1.3675]
[1730789893723,7.64724944,160.92,160.88,11.77474944]
[1730789893930,7.64724944,160.95,160.89,7.64724944]
[1730789894631,4.145,160.99,160.91,7.64724944]
[1730789894928,7.64724944,160.96,160.91,7.64724944]
[1730789895925,7.64724944,160.96,160.88,4.1275]
[1730789896233,7.64724944,160.96,160.95,3.1081]
[1730789897829,7.64724944,160.98,160.94,7.64724944]
[1730789899222,7.64724944,160.98,160.96,3.1079]
[1730789899536,7.64724944,160.98,160.94,7.64724944]
[1730789899725,7.64724944,160.98,160.96,3.1079]
[1730789902633,7.64724944,160.98,160.94,7.64724944]
[1730789903332,7.64724944,160.98,160.97,3.1078]
[1730789904343,2.76,161.02,160.98,3.1075]
[1730789904532,7.64724944,160.99,160.98,3.1075]
[1730789913547,2.76,161.02,160.98,3.1075]
[1730789913743,7.64724944,160.99,160.98,3.1075]
[1730789916443,7.64724944,161.03,160.98,7.64724944]
[1730789917252,7.64724944,161.03,161.0,3.1072]
[1730789920051,7.64724944,161.02,160.99,3.1074]
[1730789926355,7.64724944,161.02,161.0,3.1071]
[1730789930857,7.64724944,161.01,161.0,3.1071]
[1730789932668,1.4201,161.04,161.0,3.1072]
[1730789932968,7.64724944,161.01,161.0,3.1072]
[1730789936071,1.4201,161.04,160.97,7.64724944]
[1730789936272,7.64724944,161.02,160.97,7.64724944]
[1730789936770,7.64724944,161.02,161.0,3.1071]
[1730789937173,7.64724944,161.02,160.97,7.64724944]
[1730789937374,7.64724944,161.02,161.01,3.1071]
[1730789938573,7.64724944,161.02,160.97,7.64724944]
[1730789938773,7.64724944,161.0,160.96,2.76]
[1730789939074,7.64724944,160.99,160.93,1.3585]
[1730789939269,7.64724944,160.98,160.95,3.1082]
[1730789941173,7.64724944,160.98,160.94,7.64724944]
[1730789941374,7.64724944,160.98,160.96,3.108]
[1730789941776,3.1072,161.01,160.96,3.108]
[1730789941977,7.64724944,160.98,160.96,3.108]
[1730789942978,7.64724944,160.99,160.96,3.108]
[1730789944582,7.64724944,160.99,160.95,7.64724944]
[1730789945584,7.64724944,160.99,160.97,3.1077]
[1730789948387,7.64724944,160.99,160.96,3.108]
[1730789955288,7.64724944,160.99,160.97,3.1078]
[1730789959096,7.64724944,160.98,160.97,3.1078]
[1730789963101,7.64724944,160.98,160.93,1.3585]
[1730789963296,7.64724944,160.98,160.96,3.1078]
[1730789966908,7.64724944,160.98,160.93,1.3585]
[1730789967101,7.64724944,160.98,160.97,3.1078]
[1730789968705,2.76,161.01,160.97,3.1078]
[1730789968906,7.64724944,160.98,160.97,3.1078]
[1730789970911,7.64724944,160.98,160.93,3.1085]
[1730789971107,7.64724944,160.94,160.93,3.1085]
[1730789972211,7.64724944,160.95,160.94,3.1083]
[1730789972713,2.76,160.99,160.92,7.64724944]
[1730789972910,7.64724944,160.97,160.92,7.64724944]
[1730789973912,7.64724944,160.97,160.95,3.1081]
[1730789974411,7.64724944,160.97,160.92,7.64724944]
[1730789974619,7.64724944,160.97,160.96,3.108]
[1730789975708,1.3648,161.06,160.93,7.64724944]
[1730789975709,3.1068,161.03,160.97,3.1077]
[1730789975911,7.64724944,160.99,160.97,3.1077]
[1730789976109,7.64724944,160.99,160.93,2.76]
[1730789976305,7.64724944,160.99,160.93,10.40724944]
[1730789976815,7.64724944,160.99,160.97,3.1077]
[1730789977006,7.64724944,160.99,160.93,10.40724944]
[1730789977209,7.64724944,160.99,160.95,7.64724944]
[1730789977410,7.64724944,161.0,160.99,3.1073]
[1730789980322,7.64724944,161.0,160.95,7.64724944]
[1730789980323,7.64724944,161.0,160.97,3.1077]
[1730789980515,7.64724944,161.0,160.95,7.64724944]
[1730789981122,7.64724944,160.99,160.95,3.1081]
[1730789981316,7.64724944,160.99,160.94,1.3122]
[1730789981519,7.64724944,160.97,160.92,10.40724944]
[1730789981719,7.64724944,160.97,160.95,3.1081]
[1730789982325,7.64724944,160.97,160.96,3.108]
[1730789983826,7.64724944,160.97,160.95,3.1082]
[1730789984123,7.64724944,160.96,160.89,77.75848948]
[1730789984326,7.64724944,160.94,160.93,3.1084]
[1730789985219,7.64724944,160.96,160.93,3.1084]
[1730789986530,7.64724944,160.96,160.91,7.64724944]
[1730789987624,7.64724944,160.96,160.93,3.1085]
[1730789988734,7.64724944,160.96,160.9,2.76]
[1730789988735,7.2438,160.99,160.94,3.1084]
[1730789989031,7.64724944,160.98,160.94,3.1084]
[1730789989439,7.64724944,160.98,160.95,3.1082]
[1730789990238,7.64724944,160.98,160.92,7.64724944]
[1730789990438,7.64724944,160.98,160.94,3.1083]
[1730789991633,7.64724944,160.97,160.94,3.1083]
[1730789993130,2.76,161.01,160.97,3.1077]
[1730789993335,7.64724944,161.0,160.97,3.1077]
[1730789994245,7.64724944,160.99,160.97,3.1077]
[1730789996540,7.64724944,160.99,160.94,7.64724944]
[1730789997145,7.64724944,160.99,160.97,3.1077]
[1730789999239,7.64724944,160.99,160.94,7.64724944]
[1730789999545,7.64724944,160.99,160.98,3.1076]
[1730790000343,2.76,161.02,160.98,3.1076]
[1730790000543,7.64724944,160.99,160.98,3.1076]
[1730790000738,2.76,161.02,161.0,3.1071]
[1730790000944,2.76,161.02,160.97,7.64724944]
[1730790000945,7.64724944,161.02,160.97,7.64724944]
[1730790001441,7.64724944,161.02,161.0,3.1071]
[1730790001837,7.64724944,161.01,160.94,1.3556]
[1730790002143,7.64724944,161.0,160.94,1.3556]
[1730790002445,7.64724944,160.97,160.92,2.76]
[1730790002648,7.64724944,160.97,160.92,10.40724944]
[1730790003233,7.64724944,160.97,160.94,3.1082]
[1730790003640,7.64724944,160.97,160.92,10.40724944]
[1730790003846,7.64724944,160.97,160.95,3.1081]
[1730790004640,5.8674,161.0,160.95,3.1081]
[1730790004843,7.64724944,160.97,160.95,3.1081]
[1730790006446,7.64724944,160.98,160.95,3.1081]
[1730790007042,5.8674,161.0,160.95,3.1081]
[1730790007241,7.64724944,160.98,160.95,3.1081]
[1730790008244,7.64724944,160.96,160.93,3.1085]
[1730790008547,7.64724944,160.95,160.91,2.654]
[1730790008747,7.64724944,160.95,160.92,3.1088]
[1730790009549,2.76,161.0,160.91,10.30124944]
[1730790009850,7.64724944,160.97,160.94,3.1084]
[1730790010246,7.64724944,160.97,160.93,7.64724944]
[1730790011043,7.64724944,160.99,160.96,3.108]
[1730790011256,7.64724944,160.99,160.94,7.64724944]
[1730790011446,7.64724944,161.0,160.94,7.64724944]
[1730790011647,7.64724944,161.0,160.98,3.1076]
[1730790013257,7.64724944,161.02,160.96,7.64724944]
[1730790013556,7.64724944,161.0,160.95,10.40724944]
[1730790014255,7.64724944,161.0,160.98,3.1075]
[1730790015350,7.64724944,161.0,160.99,3.1074]
[1730790017060,7.64724944,161.0,160.96,3.1078]
[1730790017356,7.64724944,160.99,160.96,3.1078]
[1730790017551,7.64724944,160.99,160.97,3.1078]
[1730790019162,3.1069,161.02,160.97,3.1078]
[1730790019353,7.64724944,160.99,160.97,3.1078]
[1730790022461,7.64724944,160.98,160.95,5.8681]
[1730790022654,7.64724944,160.96,160.91,75.64816565]
[1730790022855,7.64724944,160.94,160.91,3.1089]
[1730790023758,7.64724944,160.94,160.89,8.35738944]
[1730790024663,7.64724944,160.94,160.91,3.1089]
[1730790025860,3.8946,160.98,160.89,0.71014]
[1730790025861,7.64724944,160.92,160.89,0.71014]
[1730790026056,7.64724944,160.91,160.89,0.71014]
[1730790027262,7.64724944,160.9,160.89,0.71014]
[1730790028472,7.64724944,160.9,160.83,75.65688417]
[1730790028664,7.64724944,160.88,160.85,3.11]
[1730790029464,7.64724944,160.86,160.83,78.76728417]
[1730790029673,7.64724944,160.84,160.82,2.76]
[1730790029869,7.64724944,160.84,160.8,2.76]
[1730790030170,7.64724944,160.84,160.82,3.1105]
[1730790030566,7.64724944,160.83,160.75,30.02879151]
[1730790030770,12.3728,160.82,160.69,71.5030098]
[1730790030968,7.64724944,160.8,160.75,7.64724944]
[1730790031268,12.3728,160.82,160.76,7.64724944]
[1730790031269,21.40724944,160.82,160.76,7.64724944]
[1730790031470,21.40724944,160.82,160.76,10.75894944]
[1730790031677,7.64724944,160.8,160.74,7.64724944]
[1730790031971,7.64724944,160.81,160.75,7.64724944]
[1730790032162,7.64724944,160.81,160.77,7.64724944]
[1730790032362,11.0,160.82,160.77,7.64724944]
[1730790032565,11.0,160.82,160.74,2.76]
[1730790032566,11.0,160.82,160.8,3.111]
[1730790032768,11.0,160.82,160.79,7.64724944]
[1730790033170,11.0,160.82,160.81,3.1109]
[1730790033371,2.76,160.86,160.81,3.1109]
[1730790033567,7.64724944,160.86,160.82,3.1106]
[1730790033772,10.40724944,160.87,160.82,7.64724944]
[1730790034272,7.64724944,160.86,160.81,7.64724944]
[1730790034670,7.64724944,160.86,160.83,3.1105]
[1730790035169,7.64724944,160.86,160.79,2.6906]
[1730790035375,7.64724944,160.86,160.81,10.75804944]
[1730790035876,7.64724944,160.87,160.84,3.1102]
[1730790036377,7.64724944,160.87,160.82,7.64724944]
[1730790036670,7.64724944,160.88,160.83,10.75764944]
[1730790036877,7.64724944,160.88,160.79,2.6906]
[1730790036878,2.76,160.89,160.84,7.64724944]
[1730790037077,7.64724944,160.9,160.84,7.64724944]
[1730790037774,7.64724944,160.91,160.86,7.64724944]
[1730790038077,10.40724944,160.91,160.86,7.64724944]
[1730790038575,7.64724944,160.9,160.84,7.64724944]
[1730790038781,7.64724944,160.9,160.86,3.1098]
[1730790038978,7.64724944,160.9,160.84,7.64724944]
[1730790039176,2.76,160.93,160.87,7.64724944]
[1730790039382,7.64724944,160.92,160.87,7.64724944]
[1730790039774,7.64724944,160.92,160.89,3.1092]
[1730790039975,7.64724944,160.95,160.9,7.64724944]
[1730790040384,2.76,160.96,160.9,7.64724944]
[1730790040679,7.64724944,160.95,160.9,7.64724944]
[1730790040876,4.1578,161.01,160.87,2.6149]
[1730790040877,7.64724944,160.97,160.93,3.1085]
[1730790041284,2.76,160.98,160.93,3.1085]
[1730790043186,14.70018341,160.98,160.91,3.1089]
[1730790043588,17.80788341,160.98,160.9,2.76]
[1730790043886,14.70018341,160.98,160.92,3.1088]
[1730790044481,14.70018341,160.98,160.91,3.1089]
[1730790044691,15.04828341,160.96,160.87,5.3749]
[1730790044890,11.94018341,160.94,160.87,5.3749]
[1730790045295,11.94018341,160.94,160.87,7.1728]
[1730790045296,14.70018341,160.94,160.87,7.1728]
[1730790045498,11.94018341,160.92,160.87,3.1096]
[1730790052799,14.70018341,160.94,160.87,3.1096]
[1730790053003,14.70018341,160.94,160.85,74.19923747]
[1730790053694,14.70018341,160.94,160.89,3.1092]
[1730790053897,14.70018341,160.94,160.85,74.19923747]
[1730790054403,14.70018341,160.94,160.9,3.1091]
[1730790054699,11.94018341,160.94,160.86,11.94018341]
[1730790054901,2.92,160.96,160.92,3.1087]
[1730790056405,16.39208341,160.99,160.93,3.1086]
[1730790056598,2.92,160.98,160.93,3.1086]
[1730790058206,11.94018341,160.97,160.93,3.1086]
[1730790059006,2.92,160.98,160.93,3.1086]
[1730790059305,11.94018341,160.96,160.93,3.1086]
[1730790063311,7.6448627,160.94,160.93,3.1086]
[1730790063509,7.6448627,160.94,160.91,3.1088]
[1730790063710,7.6448627,160.93,160.91,3.1088]
[1730790064206,7.6448627,160.93,160.89,7.6448627]
[1730790064410,7.6448627,160.93,160.92,3.1088]
[1730790065815,7.6448627,160.93,160.9,3.109]
[1730790066008,7.6448627,160.92,160.9,3.109]
[1730790067014,7.6448627,160.92,160.89,3.1094]
[1730790068320,7.6448627,160.9,160.85,74.19923747]
[1730790068518,7.6448627,160.9,160.87,3.1096]
[1730790068711,7.6448627,160.89,160.87,3.1096]
[1730790070612,7.6448627,160.89,160.85,3.11]
[1730790070812,7.6448627,160.88,160.83,2.7967]
[1730790071009,7.6448627,160.86,160.83,1.3832]
[1730790071213,7.6448627,160.86,160.81,10.5648627]
[1730790071422,7.6448627,160.86,160.83,3.1105]
[1730790071719,7.6448627,160.85,160.83,3.1105]
[1730790072020,7.6448627,160.85,160.82,3.1107]
[1730790072521,7.6448627,160.86,160.81,10.5648627]
[1730790072911,7.6448627,160.86,160.81,7.6448627]
[1730790073123,7.6448627,160.86,160.84,3.1102]
[1730790073722,4.1648,160.93,160.83,7.6448627]
[1730790074022,7.6448627,160.9,160.85,7.6448627]
[1730790074418,7.6448627,160.9,160.88,3.1094]
[1730790075216,7.6448627,160.9,160.85,7.6448627]
[1730790075422,7.6448627,160.92,160.9,3.1092]
[1730790076525,2.92,160.95,160.89,7.6448627]
[1730790076823,2.92,160.97,160.89,7.6448627]
[1730790077017,7.6448627,160.94,160.92,3.1087]
[1730790077419,11.94515702,160.96,160.92,3.1087]
[1730790078919,11.94515702,160.96,160.93,3.1086]
[1730790079320,2.92,160.98,160.87,13.33715702]
[1730790079520,14.86515702,160.98,160.93,3.1085]
[1730790082631,17.97285702,160.98,160.93,3.1085]
[1730790082923,11.94515702,160.95,160.86,5.6539]
[1730790083123,2.92,160.98,160.86,5.6539]
[1730790083124,11.94515702,160.92,160.86,5.6539]
[1730790084221,11.94515702,160.92,160.9,3.109]
[1730790084927,11.94515702,160.92,160.86,5.6539]
[1730790085127,11.94515702,160.92,160.88,3.1095]
[1730790087121,11.94515702,160.92,160.89,3.1094]
[1730790088232,11.94515702,160.92,160.88,3.1095]
[1730790089928,3.1087,160.93,160.88,3.1095]
[1730790090129,17.95365702,160.94,160.88,3.1095]
[1730790092223,17.95365702,160.94,160.89,3.1093]
[1730790093222,17.95365702,160.94,160.86,2.7339]
[1730790094228,17.95365702,160.94,160.89,3.1092]
[1730790095229,17.95365702,160.94,160.86,2.7339]
[1730790095425,17.95365702,160.94,160.9,3.1092]
[1730790095825,14.84515702,160.94,160.86,2.7339]
[1730790096119,2.9,160.96,160.86,2.7339]
[1730790096626,2.9,160.96,160.92,3.1087]
[1730790096823,2.9,160.96,160.86,2.7339]
[1730790097025,14.84515702,160.96,160.92,3.1087]
[1730790097936,11.94515702,160.96,160.87,1.3593]
[1730790098127,11.94515702,160.96,160.88,2.9]
[1730790098828,11.94515702,160.96,160.93,3.1085]
[1730790099428,4.4122,161.01,160.96,3.1079]
[1730790099734,7.64370113,161.0,160.94,7.64370113]
[1730790100234,7.64370113,161.0,160.97,3.1078]
[1730790100840,7.64370113,161.0,160.98,3.1075]
[1730790101135,7.64370113,161.0,160.94,7.64370113]
[1730790101333,7.64370113,161.0,160.97,3.1078]
[1730790101934,7.64370113,160.99,160.97,3.1078]
[1730790102538,7.64370113,160.98,160.94,3.1084]
[1730790102734,7.64370113,160.97,160.93,2.7196]
[1730790103333,11.94203265,160.99,160.93,2.7196]
[1730790103936,11.94203265,160.99,160.94,3.1083]
[1730790107140,11.94203265,160.99,160.93,3.1085]
[1730790107838,3.1077,160.98,160.93,3.1085]
[1730790108950,3.108,160.96,160.91,3.1088]
[1730790109648,3.108,160.96,160.88,2.9]
[1730790109846,15.04993265,160.97,160.92,3.1087]
[1730790110045,11.94203265,160.97,160.87,11.94203265]
[1730790110251,14.84203265,160.97,160.88,2.9]
[1730790111651,11.94203265,160.92,160.85,2.9]
[1730790111852,15.05083265,160.92,160.87,3.1096]
[1730790112954,11.94203265,160.92,160.87,3.1096]
[1730790113952,11.94203265,160.92,160.84,2.9]
[1730790114143,11.94203265,160.92,160.86,3.1099]
[1730790114739,3.109,160.91,160.86,3.1099]
[1730790115450,15.05083265,160.92,160.86,3.1099]
[1730790117150,11.94203265,160.92,160.84,2.9]
[1730790117651,11.94203265,160.92,160.88,3.1094]
[1730790118455,6.0086,160.93,160.88,3.1094]
[1730790121053,11.94203265,160.92,160.87,3.1097]
[1730790121653,15.05083265,160.92,160.87,3.1097]
[1730790123454,7.64039351,160.89,160.87,3.1097]
[1730790124351,7.64039351,160.89,160.84,10.54039351]
[1730790124552,7.64039351,160.89,160.86,3.1099]
[1730790125249,7.64039351,160.89,160.83,74.40223863]
[1730790125250,7.64039351,160.87,160.85,3.1101]
[1730790125452,7.64039351,160.87,160.83,72.98033863]
[1730790125654,7.64039351,160.88,160.83,80.62073214]
[1730790125851,7.64039351,160.88,160.86,3.1099]
[1730790130658,7.64039351,160.89,160.87,3.1096]
[1730790132157,7.64039351,160.88,160.87,3.1096]
[1730790133666,7.64039351,160.88,160.86,3.1098]
[1730790133866,7.64039351,160.88,160.83,83.50073214]
[1730790134067,7.64039351,160.89,160.85,7.64039351]
[1730790134258,7.64039351,160.91,160.85,7.64039351]
[1730790134859,7.64039351,160.91,160.88,3.1094]
[1730790135160,1.37,160.96,160.86,7.64039351]
[1730790135363,7.64039351,160.93,160.9,3.1091]
[1730790137464,7.64039351,160.93,160.91,3.1089]
[1730790137663,7.64039351,160.93,160.88,7.64039351]
[1730790137863,7.64039351,160.93,160.88,9.03519351]
[1730790138264,7.64039351,160.93,160.91,3.1089]
[1730790139668,7.64039351,160.93,160.88,9.03519351]
[1730790139965,7.64039351,160.96,160.91,7.64039351]
[1730790140271,2.88,160.99,160.95,3.1081]
[1730790140470,7.64039351,160.97,160.95,3.1081]
[1730790141270,7.64039351,160.99,160.97,3.1077]
[1730790141468,7.64039351,160.99,160.93,7.64039351]
[1730790141766,7.64039351,160.99,160.96,3.1079]
[1730790143869,7.64039351,160.97,160.96,3.1079]
[1730790146165,7.64039351,160.97,160.95,3.1081]
[1730790146468,7.64039351,160.96,160.95,3.1081]
[1730790150274,7.64039351,160.96,160.93,3.1086]
[1730790150477,7.64039351,160.94,160.93,3.1086]
[1730790152079,7.64039351,160.96,160.91,10.48039351]
[1730790152281,7.64039351,160.96,160.94,3.1083]
[1730790162084,7.64039351,160.96,160.91,10.48039351]
[1730790162287,7.64039351,160.98,160.92,7.64039351]
[1730790163384,7.64039351,160.98,160.96,3.1079]
[1730790166084,7.64039351,160.99,160.97,3.1078]
[1730790167485,7.64039351,160.98,160.97,3.1078]
[1730790172590,2.84,161.02,160.97,3.1078]
[1730790172794,7.64039351,160.98,160.97,3.1078]
[1730790174792,7.64039351,160.98,160.94,3.1083]
[1730790174990,7.64039351,160.95,160.94,3.1083]
[1730790176196,7.64039351,160.95,160.89,1.3341]
[1730790176396,7.64039351,160.95,160.9,10.42039351]
[1730790177198,7.64039351,160.95,160.94,3.1084]
[1730790177505,7.64039351,160.97,160.94,3.1084]
[1730790177799,7.64039351,160.98,160.95,3.1081]
[1730790180892,7.64039351,160.98,160.92,7.64039351]
[1730790181098,7.64039351,160.96,160.92,2.78]
[1730790182299,7.64039351,160.96,160.95,3.1082]